[Event "Memorial Ukrainian Chess Warriors 2024"]
[Site "Lviv"]
[Date "2024.03.15"]
[Round "3.7"]
[White "Zakordonets, Olexandr"]
[Black "Dehtiarov, Roman"]
[Result "0-1"]
[ECO "A46"]
[WhiteElo "1963"]
[BlackElo "2319"]
[Annotator "TA"]
[PlyCount "104"]
[EventDate "2024.03.06"]
[EventType "swiss"]
[EventCountry "UKR"]
[SourceTitle "playchess.com"]
[Source "ChessBase"]
[SourceQuality "1"]
[TimeControl "600+5"]

{[%evp 12,104,2,-14,-22,-34,-11,-33,-7,-18,-15,-18,-14,-12,-13,-16,0,-31,-39,-42,-53,-53,-15,-21,-10,-7,0,0,0,0,0,-10,0,-18,0,-11,0,0,0,0,0,-101,-47,-36,-36,-56,-53,-49,-52,-58,-57,-58,-54,-117,-114,-117,-113,-120,-71,-79,-81,-88,-62,-62,-57,-92,-92,-100,-100,-98,-82,-146,-124,-164,-164,-218,-209,-213,-213,-196,-204,-211,-211,-224,-224,-224,-223,-418,-308,-505,-504,-518,-515,-792,-765]} 1. d4 {[%emt 0:00:01]} Nf6 {[%emt 0:00:01]} 2. Nf3 {[%emt 0:00:02]} e6 {[%emt 0:00:03]} 3. g3 {[%emt 0:00:04]} b6 {[%emt 0:00:02]} 4. Bg2 {[%emt 0:00:02]} Bb7 {[%emt 0:00:02]} 5. O-O {[%emt 0:00:03]} c5 {[%emt 0:00:10]} 6. c3 {[%emt 0:00:10]} Be7 {[%emt 0:00:06]} 7. Bf4 {[%emt 0:00:03]} O-O {[%emt 0:00:06]} 8. Na3 {[%emt 0:00:26]} cxd4 {[%emt 0:00:39]} 9. cxd4 {[%emt 0:00:02]} Bxa3 {[%emt 0:00:05] Black is slightly better.} 10. bxa3 {[%emt 0:00:02]} d5 {[%emt 0:00:03]} 11. Rc1 {[%emt 0:00:26]} Nc6 {[%emt 0:00:15]} 12. Ne5 {[%emt 0:00:11]} Nxe5 {[%emt 0:00:28]} 13. Bxe5 {[%emt 0:00:07]} Ne4 {[%emt 0:02:10]} 14. Bxe4 {[%emt 0:03:25]} dxe4 {[%emt 0:00:02]} 15. Qb3 {[%emt 0:00:39]} Bd5 {[%emt 0:00:21]} 16. Qb2 {[%emt 0:00:02]} Qg5 {[%emt 0:00:19]} 17. Bf4 {[%emt 0:00:41]} Qh5 {[%emt 0:00:11]} 18. Rc7 {[%emt 0:00:22]} Rfc8 {[%emt 0:00:43]} 19. Rfc1 {[%emt 0:00:03]} Rxc7 {[%emt 0:00:01]} 20. Rxc7 {[%emt 0:00:02]} h6 {[%emt 0:00:07]} 21. h4 {[%emt 0:00:30]} Qg4 {[%emt 0:00:29]} 22. Qc2 {[%emt 0:00:23]} Qh3 {[%emt 0:00:41]} 23. Be3 {[%emt 0:00:18]} Qg4 {[%emt 0:01:06]} (23... b5 {is interesting.} 24. a4 a6 25. axb5 axb5 26. Rc8+ Rxc8 27. Qxc8+ Kh7) 24. a4 {[%emt 0:00:23]} Qf5 {[%emt 0:00:25]} 25. a3 {[%emt 0:00:24]} Kh7 {[%emt 0:00:11]} 26. Rc8 {[%emt 0:00:15]} (26. Qb2 $11 {remains equal.}) 26... Rxc8 {[%emt 0:00:15]} (26... Bb3 $1 $17 {[%cal Rb3c2]} 27. Qc7 Rxc8 28. Qxc8 Bxa4) 27. Qxc8 $17 {[%emt 0:00:01][%mdl 4096] Endgame. KQB-KQB} Bb3 {[%emt 0:00:22]} 28. Qa6 {[%emt 0:00:27]} Bd1 $1 {[%emt 0:00:59]} 29. Qc4 {[%emt 0:01:35]} Qa5 {[%emt 0:00:22]} (29... Qd5 {simplifies} 30. Qxd5 exd5 31. Kf1 Bxa4 32. Bf4 Kg6) 30. Kf1 {[%emt 0:00:47] Repels Qe1+} Bxa4 {[%emt 0:00:05]} (30... Qxa4 {simplifies} 31. Qxa4 Bxa4 32. g4 Bb5) 31. Qc7 {[%emt 0:00:18]} Qh5 {[%emt 0:00:30]} 32. Ke1 {[%emt 0:00:17] [#]} ({White should play} 32. Qb7 $15) 32... Qb5 $1 {[%emt 0:00:27]} 33. Qc1 {[%emt 0:00:03]} Bb3 {[%emt 0:00:17] Black is more active.} 34. Qb1 {[%emt 0:00:07]} f5 {[%emt 0:00:04]} (34... Qa5+ $142 35. Bd2 Qxa3 36. Qxe4+ f5) 35. Qb2 {[%emt 0:00:01]} Qd5 {[%emt 0:00:08]} 36. Bf4 {[%emt 0:00:06]} Qa5+ {[%emt 0:00:35]} 37. Bd2 {[%emt 0:00:01]} Qa4 {[%emt 0:00:08]} 38. d5 {[%emt 0:00:13] Black converts the advantage convincingly.} Bxd5 {[%emt 0:00:08]} ({Don't play} 38... exd5 39. Bc3 $11) 39. Bc3 {[%emt 0:00:01]} Qd7 {[%emt 0:00:04]} 40. Be5 {[%emt 0:00:05]} Bc6 {[%emt 0:00:02]} 41. h5 {[%emt 0:00:06]} (41. Qd2 $142) 41... Bb7 {[%emt 0:00:07]} 42. Bd4 {[%emt 0:00:06]} Ba6 {[%emt 0:00:07]} 43. Be5 {[%emt 0:00:02]} (43. Qc3 $142) 43... Qf7 $19 {[%emt 0:00:02]} 44. g4 {[%emt 0:00:11]} fxg4 {[%emt 0:00:07]} 45. Qd4 {[%emt 0:00:00]} Qxh5 {[%emt 0:00:06]} 46. Qxe4+ {[%emt 0:00:01]} Qf5 {[%emt 0:00:02]} 47. Qd4 {[%emt 0:00:09]} Qb1+ {[%emt 0:00:02]} 48. Kd2 {[%emt 0:00:01]} Qa2+ {[%emt 0:00:01]} 49. Kc1 $2 {[%emt 0:00:11] [#]} (49. Qb2 Qxb2+ 50. Bxb2) 49... Qxa3+ {[%emt 0:00:03]} 50. Kd2 $2 {[%emt 0:00:01]} (50. Kc2) 50... Qa2+ {[%emt 0:00:10] Black is clearly winning.} 51. Kc1 {[%emt 0:00:01]} Qxe2 {[%emt 0:00:08]} 52. Bf4 {[%emt 0:00:13]} (52. Bxg7 $142 Bd3 53. Qc3) 52... Qc4+ {[%emt 0:00:07] Weighted Error Value: White=0.30/Black=0.11 (very precise) .  Mistake:       	White=7     	Black=2      Inaccurate:     	White=3     	Black=2      OK:         	White=11    	Black=16     Best:        	White=2     	Black=3      Strong:       	---       	Black=2} 0-1

[Event "Memorial Ukrainian Chess Warriors 2024"]
[Site "Lviv"]
[Date "2024.03.15"]
[Round "3.8"]
[White "Semenov, Dmytro"]
[Black "Smolkin, Alexander"]
[Result "1-0"]
[ECO "C02"]
[WhiteElo "2370"]
[BlackElo "1957"]
[Annotator "RC"]
[PlyCount "129"]
[EventDate "2024.03.06"]
[EventType "swiss"]
[EventCountry "UKR"]
[SourceTitle "playchess.com"]
[Source "ChessBase"]
[SourceQuality "1"]
[TimeControl "600+5"]

1. e4 {[%emt 0:00:03]} e6 {[%emt 0:00:03]} 2. d4 {[%emt 0:00:08]} d5 {[%emt 0:00:02]} 3. e5 {[%emt 0:00:05]} c5 {[%emt 0:00:03]} 4. c3 {[%emt 0:00:01]} Nc6 {[%emt 0:00:05]} 5. Nf3 {[%emt 0:00:02]} Bd7 {[%emt 0:00:04]} 6. Be2 {[%emt 0:00:09]} Nge7 {[%emt 0:00:28]} 7. Na3 {[%emt 0:00:58]} Nf5 {[%emt 0:00:10]} 8. Nc2 {[%emt 0:00:07]} Be7 {[%emt 0:00:09]} 9. O-O {[%emt 0:00:07]} O-O {[%emt 0:00:05]} 10. Bd3 {[%emt 0:01:06]} Qc7 {[%emt 0:01:02]} 11. g4 {[%emt 0:01:38]} Nh4 {[%emt 0:00:31]} 12. Nxh4 {[%emt 0:00:15]} Bxh4 {[%emt 0:00:03]} 13. g5 {[%emt 0:00:06]} c4 {[%emt 0:00:55]} 14. Bxh7+ {[%emt 0:00:18]} Kxh7 {[%emt 0:00:02]} 15. Qh5+ {[%emt 0:00:03]} Kg8 {[%emt 0:00:01]} 16. Qxh4 {[%emt 0:00:06]} Ne7 {[%emt 0:00:52]} 17. Ne3 {[%emt 0:00:44]} Nf5 {[%emt 0:00:53]} 18. Qh3 {[%emt 0:03:02]} g6 {[%emt 0:03:05]} 19. Nxf5 {[%emt 0:00:54]} exf5 {[%emt 0:00:14]} 20. Bf4 {[%emt 0:00:19]} Be6 {[%emt 0:00:08]} 21. Rae1 {[%emt 0:00:05]} Rfb8 {[%emt 0:00:07]} 22. Qh6 {[%emt 0:00:59]} Qe7 {[%emt 0:00:09]} 23. Re3 {[%emt 0:00:05]} Qf8 {[%emt 0:00:03]} 24. Rh3 {[%emt 0:00:01]} Qxh6 {[%emt 0:00:03]} 25. gxh6 {[%emt 0:00:03]} Kh7 {[%emt 0:00:27]} 26. Bg5 {[%emt 0:00:01]} b5 {[%emt 0:00:08]} 27. Rg3 {[%emt 0:00:27]} a5 {[%emt 0:00:06]} 28. a3 {[%emt 0:00:08]} b4 {[%emt 0:00:10]} 29. axb4 {[%emt 0:00:01]} axb4 {[%emt 0:00:01]} 30. Be7 {[%emt 0:00:03]} b3 {[%emt 0:00:40]} 31. f4 {[%emt 0:00:06]} Ra2 {[%emt 0:00:16]} 32. Rb1 {[%emt 0:00:08]} Rb7 {[%emt 0:00:09]} 33. Bc5 {[%emt 0:00:17]} Rc7 {[%emt 0:00:33]} 34. Bd6 {[%emt 0:00:05]} Rb7 {[%emt 0:00:01]} 35. Bf8 {[%emt 0:00:06]} Rba7 {[%emt 0:00:05]} 36. Kf2 {[%emt 0:00:05]} Ra1 {[%emt 0:00:05]} 37. Rgg1 {[%emt 0:00:05]} R1a2 {[%emt 0:00:16]} 38. Kg3 {[%emt 0:00:05]} Ra8 {[%emt 0:00:03]} 39. Be7 {[%emt 0:00:04]} R2a7 {[%emt 0:00:06]} 40. Bf6 {[%emt 0:00:04]} Ra2 {[%emt 0:00:09]} 41. Kh4 {[%emt 0:00:02]} R8a6 {[%emt 0:00:06]} 42. Kg5 {[%emt 0:00:03]} Ra8 {[%emt 0:00:05]} 43. Rgf1 {[%emt 0:00:06]} R8a7 {[%emt 0:00:02]} 44. Rfe1 {[%emt 0:00:02]} Ra8 {[%emt 0:00:00]} 45. Rg1 {[%emt 0:00:01]} R8a7 {[%emt 0:00:01]} 46. h4 {[%emt 0:00:01]} Ra8 {[%emt 0:00:05]} 47. h5 {[%emt 0:00:03]} Rg8 {[%emt 0:00:08]} 48. Bg7 {[%emt 0:00:01]} Ra6 {[%emt 0:00:32]} 49. Ra1 {[%emt 0:00:06]} Rga8 {[%emt 0:00:06]} 50. Rxa6 {[%emt 0:00:02]} Rxa6 {[%emt 0:00:01]} 51. hxg6+ {[%emt 0:00:12]} fxg6 {[%emt 0:00:02]} 52. Kf6 {[%emt 0:00:02]} Bg8+ {[%emt 0:00:10]} 53. Ke7 {[%emt 0:00:03]} Ra7+ {[%emt 0:00:05]} 54. Kd6 {[%emt 0:00:05]} Ra6+ {[%emt 0:00:01]} 55. Kc5 {[%emt 0:00:02]} Ra2 {[%emt 0:00:03]} 56. Rg2 {[%emt 0:00:06]} Ra6 {[%emt 0:00:04]} 57. Kb5 {[%emt 0:00:02]} Ra1 {[%emt 0:00:04]} 58. Re2 {[%emt 0:00:32]} Be6 {[%emt 0:00:07]} 59. Kc6 {[%emt 0:00:01]} Ra6+ {[%emt 0:00:03]} 60. Kc7 {[%emt 0:00:03]} Ra7+ {[%emt 0:00:02]} 61. Kd6 {[%emt 0:00:02]} Ra6+ {[%emt 0:00:03]} 62. Ke7 {[%emt 0:00:03]} Kg8 {[%emt 0:00:07]} 63. Bf6 {[%emt 0:00:02]} Kh7 {[%emt 0:00:04]} 64. Re1 {[%emt 0:00:03]} Kg8 {[%emt 0:00:11]} 65. h7+ {[%emt 0:00:02]} 1-0

[Event "Memorial Ukrainian Chess Warriors 2024"]
[Site "Lviv"]
[Date "2024.03.15"]
[Round "3.9"]
[White "Fainkihen, Efim"]
[Black "Podolskyi, Mykhailo"]
[Result "1/2-1/2"]
[ECO "B40"]
[WhiteElo "1976"]
[BlackElo "2331"]
[Annotator "TA"]
[PlyCount "121"]
[EventDate "2024.03.06"]
[EventType "swiss"]
[EventCountry "UKR"]
[SourceTitle "playchess.com"]
[Source "ChessBase"]
[SourceQuality "1"]
[TimeControl "600+5"]

{[%evp 9,121,-12,-14,-32,-10,-38,-35,-62,-32,-59,-62,-56,-53,-175,-135,-276,-190,-231,-227,-292,-224,-330,-326,-313,-337,-341,-358,-436,-415,-429,-420,-442,-443,-407,-310,-310,-318,-319,-314,-436,-281,-260,-253,-298,14,10,15,15,18,22,68,71,56,32,45,39,42,0,0,-30,-44,-90,43,45,38,47,62,30,28,31,30,37,85,37,199,192,175,194,197,199,420,406,359,77,75,74,233,39,121,108,154,84,79,72,78,72,73,73,217,202,184,8,8,9,9,0,142,105,203,191,185,142,379,155]} 1. e4 {[%emt 0:00:03]} c5 {[%emt 0:00:04]} 2. Nf3 {[%emt 0:00:01]} e6 {[%emt 0:00:02]} 3. b4 {[%emt 0:00:02]} cxb4 {[%emt 0:00:46]} 4. d4 {[%emt 0:00:02]} Nf6 {[%emt 0:00:26]} 5. Bd3 {[%emt 0:00:02]} b6 {[%emt 0:00:50]} 6. Qe2 {[%emt 0:00:22]} Bb7 {[%emt 0:00:09]} 7. O-O {[%emt 0:00:43]} d5 {[%emt 0:01:21]} 8. exd5 {[%emt 0:01:58] Schwarz steht etwas besser.} Nxd5 {[%emt 0:01:56]} 9. Bb5+ {[%emt 0:02:46]} Nc6 {[%emt 0:00:55]} 10. Ne5 {[%emt 0:00:03]} Qc7 {[%emt 0:00:02]} 11. f4 {[%emt 0:01:24]} (11. a3 $15) 11... Bd6 {[%emt 0:02:01]} 12. f5 {[%emt 0:00:01]} (12. a3 $17 {ist eine bessere Verteidigung.}) 12... Bxe5 {[%emt 0:00:40]} 13. dxe5 {[%emt 0:00:03]} O-O-O {[%emt 0:00:20]} 14. Bb2 {[%emt 0:00:25] Lässt Nd4 nicht zu} Kb8 {[%emt 0:00:48]} 15. a3 {[%emt 0:00:15] [#]} (15. fxe6 $142 fxe6 16. a3) 15... Nc3 $1 $19 {[%emt 0:00:31][%mdl 512]} 16. Nxc3 {[%emt 0:00:45]} (16. Bxc3 bxc3) 16... Nd4 {[%emt 0:00:02]} (16... bxc3 17. Bxc3 Ne7 18. Be1 (18. f6 $2 Qxc3 19. fxe7 Rd2 $19) 18... Nxf5 (18... exf5 19. e6 $11) 19. Bd3 $17) 17. Qc4 {[%emt 0:00:19]} bxc3 {[%emt 0:00:02]} 18. Qxc7+ {[%emt 0:00:28]} Kxc7 {[%emt 0:00:02]} 19. Bxc3 {[%emt 0:00:01]} Nxb5 {[%emt 0:00:01]} 20. Bb4 {[%emt 0:00:07]} a5 {[%emt 0:00:18]} 21. Be1 {[%emt 0:00:02]} Bd5 {[%emt 0:00:18]} 22. c4 {[%emt 0:00:07]} Bxc4 {[%emt 0:00:06]} 23. Rc1 {[%emt 0:00:00]} Rd4 {[%emt 0:00:08]} 24. a4 {[%emt 0:00:30]} Na7 {[%emt 0:00:06]} 25. fxe6 {[%emt 0:00:01]} fxe6 {[%emt 0:00:02] Droht ...Kb7 und aus.} 26. Rf7+ {[%emt 0:00:06]} Kc6 $2 {[%emt 0:00:10]} (26... Kb8 $19 {Droht stark ...Bd5.} 27. Bf2 Re4 28. Bxb6 Nc6 29. Rxg7 Bd5 (29... Nxe5 30. Bc7+ Ka8 31. Bxe5 $16)) 27. Bf2 $1 $11 {[%emt 0:00:19]} Re4 {[%emt 0:00:05]} 28. Rxa7 {[%emt 0:00:06]} Rd8 {[%emt 0:00:03]} 29. Rxg7 {[%emt 0:00:24]} Rd2 {[%emt 0:00:06]} (29... Rd7 $11 30. Rxd7 Kxd7) 30. Rxh7 $14 {[%emt 0:00:40]} Ra2 {[%emt 0:00:03]} 31. Rh6 {[%emt 0:00:11]} Kb7 {[%emt 0:00:10]} 32. Rb1 {[%emt 0:00:13]} Bb3 {[%emt 0:00:03][%cal Oe4a4]} 33. h4 {[%emt 0:00:11]} (33. Rxb3 Ra1+ $17) 33... Rb4 {[%emt 0:00:05][%cal Ob3d5]} 34. Rh7+ {[%emt 0:00:05]} Ka6 {[%emt 0:00:04]} 35. Rc1 {[%emt 0:00:02] Verhindert Bc2} (35. Rf7 $15 {scheint genauer.}) 35... Rc2 {[%emt 0:00:03]} (35... Rf4 $17 36. Rcc7 Raxa4 (36... Ra1+ 37. Kh2 $17) 37. Ra7+ Kb5 38. Bxb6 Kxb6 (38... Ra1+ 39. Kh2 $11) 39. Rhb7+ Kc5 40. Rxb3 Ra1+ 41. Kh2 Rxh4+ 42. Kg3 Re4) 36. Rxc2 Bxc2 {[%emt 0:00:01][%mdl 4096] Endspiel. KRB-KRB} 37. Rc7 {[%emt 0:00:06]} Bf5 {[%emt 0:00:01]} 38. h5 {[%emt 0:00:04] Weiß steht aktiver.} Rxa4 {[%emt 0:00:02]} 39. h6 {[%emt 0:00:04]} Ra1+ {[%emt 0:00:11]} 40. Kh2 {[%emt 0:00:01]} Ra2 {[%emt 0:00:01]} (40... Rf1 $14 41. Be3 Re1) 41. Kg3 {[%emt 0:00:03]} (41. Bh4 $16) 41... Ra3+ $2 {[%emt 0:00:07] [#]} (41... a4 $1 $14) 42. Kf4 $1 $18 {[%emt 0:00:04]} Ra4+ {[%emt 0:00:01] [#]} 43. Kf3 $1 {[%emt 0:00:14]} Ra3+ {[%emt 0:00:19]} 44. Be3 {[%emt 0:00:01] Und g4 würde nun gewinnen.} Ra1 $2 {[%emt 0:00:03]} (44... Ra4 45. Rg7 Be4+ 46. Kg3 Ra1) 45. g4 {[%emt 0:00:17]} Bd3 {[%emt 0:00:06]} 46. h7 $2 {[%emt 0:00:06]} (46. Rc6 $18 {ist viel giftiger.} a4 47. Rxb6+ (47. Rxe6 a3 $18) 47... Ka5 48. Rd6 (48. Rxe6 a3 $18)) 46... Rh1 $16 {[%emt 0:00:01]} 47. Rc6 {[%emt 0:00:04]} (47. Re7 {vereinfacht} Rxh7 48. Rxe6 a4 49. Rxb6+ Ka5 50. Rb8) 47... Rh3+ $2 {[%emt 0:00:07]} (47... a4 $16 {war einen Versuch wert.}) 48. Kf2 $2 {[%emt 0:00:04]} (48. Kg2 $18 Rxe3 49. h8=Q (49. h8=R $2 Be4+ 50. Kf2 Rf3+ 51. Ke2 Bxc6 $19) 49... Be4+ 50. Kh2 Bxc6 51. Qc8+ Kb5 52. Qxe6) 48... Kb5 {[%emt 0:00:07]} ({Vorzuziehen ist} 48... a4 $1 $14) 49. Rxb6+ {[%emt 0:00:01]} (49. Bxb6 $2 {geht unter.} Kxc6 50. Bxa5 Kd7 $19 (50... Bxh7 $2 51. Bd8 $19) (50... Rxh7 $2 51. Kg2 $19)) 49... Ka4 {[%emt 0:00:00]} ({Günstiger ist} 49... Kc4) 50. h8=Q {[%emt 0:00:07]} (50. Rxe6 $142 {Zielt auf Rb6 ab.} Rxh7 51. Rb6) 50... Rxh8 {[%emt 0:00:02]} 51. Rxe6 {[%emt 0:00:03]} Kb5 {[%emt 0:00:03]} 52. Rb6+ {[%emt 0:00:02]} Kc4 {[%emt 0:00:00]} 53. Rc6+ {[%emt 0:00:03]} Kb5 {[%emt 0:00:07]} (53... Kb4 $16 {war nötig.}) 54. Rc5+ $18 {[%emt 0:00:01]} Kb4 {[%emt 0:00:01]} 55. Rd5 $2 {[%emt 0:00:04]} (55. e6 $18) 55... Bc4 $1 $11 {[%emt 0:00:02]} 56. Bd2+ {[%emt 0:00:04]} Kb3 {[%emt 0:00:02]} 57. Rxa5 {[%emt 0:00:07] Schwarz muss nun Kf3 beachten.} Kc2 {[%emt 0:00:02]} (57... Rh2+ $11 58. Ke1 (58. Ke3 Re2+ 59. Kf4 Rxd2 $11) 58... Rh1+ 59. Kf2 Rh2+ 60. Ke1 (60. Ke3 Re2+ 61. Kf4 Rxd2 $11) 60... Kc2) 58. Be3 {[%emt 0:00:03] Und jetzt Kf3 wäre schön.} Rf8+ {[%emt 0:00:08]} (58... Kd3 $16) 59. Kg3 $18 {[%emt 0:00:03]} Kd3 {[%emt 0:00:00]} 60. Bf4 {[%emt 0:00:01]} Ke4 $2 {[%emt 0:00:03]} (60... Rg8 $16) 61. Ra4 {[%emt 0:00:22] Weiß hat die Chance genutzt.   Gewichteter Fehlerwert: Weiß=0.40/Schwarz=0.50.  Verlustzug:     	---       	Schwarz=2     Gewinn verpasst:   	Weiß=4     	Schwarz=1     Fehler:       	Weiß=6     	Schwarz=10    Ungenau:       	Weiß=7     	Schwarz=3     OK:         	Weiß=14    	Schwarz=20    Bester:       	Weiß=7     	Schwarz=7     Stark:        	Weiß=3     	Schwarz=1} (61. e6 $18 {ist der präzise Gewinnweg.}) 1/2-1/2

[Event "Memorial Ukrainian Chess Warriors 2024"]
[Site "Lviv"]
[Date "2024.03.15"]
[Round "3.10"]
[White "Mosesov, Danyil"]
[Black "Frankiv, Oleksandr"]
[Result "1-0"]
[ECO "A04"]
[WhiteElo "2453"]
[BlackElo "1788"]
[Annotator "TA"]
[PlyCount "95"]
[EventDate "2024.03.06"]
[EventType "swiss"]
[EventCountry "UKR"]
[SourceTitle "playchess.com"]
[Source "ChessBase"]
[SourceQuality "1"]
[TimeControl "600+5"]

{[%evp 10,95,48,53,49,45,45,42,44,48,39,27,30,37,37,0,57,37,87,88,141,143,136,150,197,129,129,105,116,115,106,114,102,113,103,110,97,108,143,71,89,91,92,31,12,13,63,-39,-12,-62,4,26,39,31,73,53,101,38,47,45,51,39,54,58,59,61,70,45,37,50,59,28,31,36,437,429,1717,1513,2106,1831,2663,2538,2468,2425,2425,2079,1761,1577]} 1. Nf3 {[%emt 0:00:02]} Nc6 {[%emt 0:00:13]} 2. d4 {[%emt 0:00:10]} d5 {[%emt 0:00:01]} 3. c4 {[%emt 0:00:01]} Bg4 {[%emt 0:00:00]} 4. cxd5 {[%emt 0:00:03]} Bxf3 {[%emt 0:00:01]} 5. gxf3 {[%emt 0:00:01]} Qxd5 {[%emt 0:00:01]} 6. e3 {[%emt 0:00:00]} Nf6 {[%emt 0:00:17]} 7. Nc3 {[%emt 0:00:02]} Qh5 {[%emt 0:00:22]} 8. Bb5 {[%emt 0:01:16]} e6 {[%emt 0:00:18] White is slightly better.} 9. Bd2 {[%emt 0:01:13]} Bb4 {[%emt 0:02:31]} 10. Qe2 {[%emt 0:00:11]} a6 {[%emt 0:01:24]} 11. Bxc6+ {[%emt 0:00:54]} bxc6 {[%emt 0:00:01]} 12. O-O-O {[%emt 0:00:03][%cal Ba1d1,Bd1d2,Bd2c2,Bc2c6][%mdl 32]} Nd5 {[%emt 0:01:35]} (12... O-O $11) 13. Ne4 {[%emt 0:01:02]} Bxd2+ {[%emt 0:00:37]} (13... a5 $14) 14. Rxd2 $16 {[%emt 0:00:01]} (14. Nxd2 O-O $11) 14... Nb6 {[%emt 0:01:39]} (14... O-O $142) 15. Rg1 {[%emt 0:00:54]} Kf8 {[%emt 0:00:59]} 16. Rc2 {[%emt 0:00:34]} Qb5 {[%emt 0:00:18]} (16... g6 $16 {is a better defense.} 17. Rh1 (17. Rxc6 Nd5 $16) 17... Qh3 18. Rxc6 Kg7) 17. Qxb5 {[%emt 0:01:26]} (17. Qd2 $18 {Rc5 would now be deadly.} Qf5 18. Rg3 (18. Rxc6 Qxf3 19. Rxc7 Qxe4 $18)) 17... axb5 {[%emt 0:00:01]} 18. Rxc6 {[%emt 0:00:19]} Rxa2 {[%emt 0:00:10]} 19. Kb1 {[%emt 0:00:01] Repels Ra1+} ({Inferior is} 19. Rxc7 Ra1+ 20. Kc2 Rxg1 $15) 19... Ra7 {[%emt 0:00:06]} 20. Nc3 {[%emt 0:00:24]} Rb7 {[%emt 0:01:02]} 21. Nxb5 {[%emt 0:00:25] White has more active pieces.} Nd5 {[%emt 0:00:02]} 22. Nc3 {[%emt 0:00:33]} Nb4 {[%emt 0:00:00]} 23. Rc4 {[%emt 0:00:10]} Nd3 {[%emt 0:00:03]} 24. Nd1 {[%emt 0:00:08]} (24. Na4 $142) 24... g6 {[%emt 0:00:13]} 25. Rc3 {[%emt 0:00:18]} Nb4 {[%emt 0:00:01]} 26. Rg5 {[%emt 0:00:35]} (26. Rb3 $16) 26... Nd5 $14 {[%emt 0:00:07]} 27. Ra3 {[%emt 0:00:10]} Ke7 {[%emt 0:00:08]} (27... Kg7 $11) 28. e4 {[%emt 0:00:22]} (28. Nc3 $1 $14) 28... f6 {[%emt 0:00:05][%mdl 1024] Black has compensation.} 29. Rg1 {[%emt 0:00:04]} (29. Rg4 $11 Nb4 30. Rh4) 29... Nb4 {[%emt 0:00:08]} (29... Nf4 $15) 30. Ne3 $11 {[%emt 0:00:14]} Rhb8 {[%emt 0:00:02]} 31. Rc1 $36 {[%emt 0:00:22][%mdl 2048] Prevents Nc6. White has good play.} c6 {[%emt 0:00:08]} 32. Nc4 {[%emt 0:00:08]} Kd7 (32... Rb5 $14 {feels stronger.}) 33. Rb3 {[%emt 0:00:11]} ({White should play} 33. f4 $16) 33... Na6 {[%emt 0:00:08]} 34. Rxb7+ {[%emt 0:00:01]} Rxb7 $14 {[%emt 0:00:01][%mdl 4096] Endgame. KRN-KRN} 35. Kc2 {[%emt 0:00:08]} Nb4+ {[%emt 0:00:03]} 36. Kd2 {[%emt 0:00:01]} Na6 $1 {[%emt 0:00:08]} 37. Ra1 {[%emt 0:00:04]} Nc7 {[%emt 0:00:09]} 38. Kc3 {[%emt 0:00:18]} Nb5+ {[%emt 0:00:04]} 39. Kd3 {[%emt 0:00:01] Hoping for Ra8.} Nd6 {[%emt 0:00:06]} 40. Nxd6 {[%emt 0:00:02]} Kxd6 {[%emt 0:00:00] KR-KR} 41. Kc3 {[%emt 0:00:01]} f5 $2 {[%emt 0:00:08][%mdl 8192] [#] This costs Black the game.} (41... e5 $14) 42. e5+ $1 $18 {[%emt 0:00:10] White is clearly winning.} Kd5 {[%emt 0:00:07]} (42... Kc7 $142 43. Ra8 h6) 43. Ra5+ {[%emt 0:00:02]} Rb5 {[%emt 0:00:00]} 44. b4 {[%emt 0:00:29]} g5 {[%emt 0:00:08]} 45. Ra7 {[%emt 0:00:07][%cal Ra7d7]} c5 {[%emt 0:00:01]} 46. Rd7+ {[%emt 0:00:02]} (46. Rxh7 cxd4+ 47. Kb3 Kxe5 $17) 46... Kc6 {[%emt 0:00:00]} 47. Rd6+ {[%emt 0:00:01]} (47. Rxh7 Rxb4 48. dxc5 Rf4 $11) 47... Kc7 {[%emt 0:00:01]} 48. dxc5 {[%emt 0:00:01] Weighted Error Value: White=0.19 (very precise) /Black=0.34.  Loses game:     	---       	Black=1      Mistake:       	White=6     	Black=8      Inaccurate:     	White=2     	Black=3      OK:         	White=13    	Black=10     Best:        	White=3     	Black=2      Strong:       	White=1     	Black=1} 1-0